fUST/lending_fUST_20250529
["ID","MTS","AMOUNT","RATE_DAILY","PERIOD"]
[362900931,1748517046989,-191.65472452,0.00021369,2]
[362900933,1748517046998,-430.0,0.00021369,2]
[362900935,1748517047007,-430.0,0.00021369,2]
[362900937,1748517047016,-430.0,0.00021369,2]
[362900939,1748517047025,-433.02,0.00021369,2]
[362900941,1748517047034,-616.46,0.00021369,2]
[362900942,1748517047043,-430.0,0.00021369,2]
[362900945,1748517047053,-430.0,0.00021369,2]
[362900946,1748517047061,-1692.37,0.00021369,2]
[362900948,1748517047071,-430.0,0.00021369,2]
[362900950,1748517047080,-546.89,0.00021369,2]
[362900952,1748517047089,-430.0,0.00021369,2]
[362900955,1748517047099,-430.0,0.00021369,2]
[362900956,1748517047108,-430.0,0.00021369,2]
[362900958,1748517047117,-458.93,0.00021369,2]
[362900960,1748517047127,-1754.99,0.00021369,2]
[362900962,1748517047136,-1606.18,0.00021369,2]
[362900965,1748517047146,-430.0,0.00021369,2]
[362900966,1748517047154,-464.47,0.00021369,2]
[362900968,1748517047164,-430.0,0.00021369,2]
[362900970,1748517047174,-430.0,0.00021369,2]
[362900972,1748517047183,-430.0,0.00021369,2]
[362900974,1748517047193,-208.73090951,0.00021567,5]
[362900976,1748517047202,-430.0,0.00021643,2]
[362900978,1748517047211,-430.0,0.00021643,2]
[362900980,1748517047220,-430.0,0.00021643,2]
[362900982,1748517047231,-430.0,0.00021643,2]
[362900985,1748517047240,-430.0,0.00021643,2]
[362900986,1748517047250,-430.0,0.00021643,2]
[362900989,1748517047260,-430.0,0.00021643,2]
[362900990,1748517047269,-430.0,0.00021643,2]
[362900992,1748517047279,-430.0,0.00021643,2]
[362900994,1748517047288,-430.0,0.00021643,2]
[362900996,1748517047297,-430.0,0.00021643,2]
[362900998,1748517047306,-430.0,0.00021643,2]
[362901000,1748517047315,-430.0,0.00021643,2]
[362901002,1748517047325,-430.0,0.00021643,2]
[362901005,1748517047334,-1017.41,0.00021643,2]
[362901007,1748517047343,-430.0,0.00021643,2]
[362901009,1748517047353,-571.75,0.00021643,2]
[362901011,1748517047362,-933.59,0.00021643,2]
[362901013,1748517047372,-430.0,0.00021643,2]
[362901015,1748517047382,-430.0,0.00021643,2]
[362901017,1748517047392,-430.0,0.00021643,2]
[362901019,1748517047401,-430.0,0.00021643,2]
[362901021,1748517047410,-544.48222341,0.00021643,2]
[362901023,1748517047419,-667.95,0.00021643,2]
[362901025,1748517047429,-2416.48,0.00021643,2]
[362901027,1748517047439,-430.0,0.00021643,2]
[362901029,1748517047453,-430.0,0.00021643,2]
[362901031,1748517047464,-430.0,0.00021643,2]
[362901033,1748517047474,-430.0,0.00021643,2]
[362901035,1748517047484,-430.0,0.00021643,2]
[362901037,1748517047493,-430.0,0.00021643,2]
[362901039,1748517047503,-430.0,0.00021643,2]
[362901041,1748517047512,-430.0,0.00021643,2]
[362901043,1748517047523,-679.15,0.00021643,2]
[362901045,1748517047532,-430.0,0.00021643,2]
[362901047,1748517047541,-430.0,0.00021643,2]
[362901049,1748517047551,-433.02,0.00021643,2]
[362901051,1748517047560,-616.46,0.00021643,2]
[362901053,1748517047570,-430.0,0.00021643,2]
[362901055,1748517047579,-1692.37,0.00021643,2]
[362901057,1748517047589,-430.0,0.00021643,2]
[362901059,1748517047598,-430.0,0.00021643,2]
[362901061,1748517047607,-458.93,0.00021643,2]
[362901063,1748517047617,-1754.99,0.00021643,2]
[362901065,1748517047626,-1606.18,0.00021643,2]
[362901067,1748517047635,-430.0,0.00021643,2]
[362901069,1748517047645,-464.47,0.00021643,2]
[362901071,1748517047655,-430.0,0.00021643,2]
[362901073,1748517047664,-430.0,0.00021643,2]
[362901074,1748517047673,-430.0,0.00021643,2]
[362901075,1748517047684,-208.73090951,0.000219,6]
[362901076,1748517047694,-430.0,0.00021917,2]
[362901077,1748517047703,-430.0,0.00021917,2]
[362901078,1748517047713,-430.0,0.00021917,2]
[362901079,1748517047722,-430.0,0.00021917,2]
[362901080,1748517047732,-516.12927608,0.00021917,2]
[362901081,1748517047743,-430.0,0.00021917,2]
[362901082,1748517047753,-153.52290629,0.00021917,2]
[362901083,1748517047763,-375.24555512,0.00021917,2]
[362901084,1748517047772,-430.0,0.00021917,2]
[362901085,1748517047782,-444.6711885,0.00021917,2]
[362901086,1748517047791,-430.0,0.00021917,2]
[362901087,1748517047800,-430.0,0.00021917,2]
[362901088,1748517047810,-430.0,0.00021917,2]
[362901089,1748517047819,-430.0,0.00021917,2]
[362901090,1748517047828,-1017.41,0.00021917,2]
[362901091,1748517047838,-430.0,0.00021917,2]
[362901092,1748517047847,-571.75,0.00021917,2]
[362901093,1748517047856,-430.0,0.00021917,2]
[362901094,1748517047866,-933.59,0.00021917,2]
[362901095,1748517047875,-430.0,0.00021917,2]
[362901096,1748517047884,-506.26,0.00021917,2]
[362901097,1748517047894,-430.0,0.00021917,2]
[362901098,1748517047903,-667.95,0.00021917,2]
[362901099,1748517047913,-2416.48,0.00021917,2]
[362901100,1748517047923,-430.0,0.00021917,2]
[362901101,1748517047931,-430.0,0.00021917,2]
[362901102,1748517047940,-430.0,0.00021917,2]
[362901103,1748517047950,-430.0,0.00021917,2]
[362901104,1748517047959,-430.0,0.00021917,2]
[362901105,1748517047968,-430.0,0.00021917,2]
[362901106,1748517047978,-355.82025,0.00021917,2]
[362901107,1748517047988,-679.15,0.00021917,2]
[362901108,1748517047997,-430.0,0.00021917,2]
[362901109,1748517048007,-430.0,0.00021917,2]
[362901110,1748517048016,-452.83109271,0.00021917,2]
[362901111,1748517048025,-433.02,0.00021917,2]
[362901112,1748517048035,-616.46,0.00021917,2]
[362901113,1748517048045,-430.0,0.00021917,2]
[362901114,1748517048054,-1692.37,0.00021917,2]
[362901115,1748517048064,-430.0,0.00021917,2]
[362901116,1748517048073,-430.0,0.00021917,2]
[362901117,1748517048083,-458.93,0.00021917,2]
[362901118,1748517048093,-1754.99,0.00021917,2]
[362901119,1748517048103,-1606.18,0.00021917,2]
[362901120,1748517048113,-430.0,0.00021917,2]
[362901121,1748517048123,-464.47,0.00021917,2]
[362901122,1748517048133,-430.0,0.00021917,2]
[362901123,1748517048142,-430.0,0.00021917,2]
[362901124,1748517048151,-430.0,0.00021917,2]
[362901125,1748517048162,-812.99,0.00022,7]
[362901126,1748517048172,-27395.00980025,0.00022,7]
[362901127,1748517048347,-825.1020984,0.00022,7]
[362901128,1748517048458,152.28,0.00014197,2]
[362901129,1748517048513,203.04,0.00014814,2]
[362901130,1748517048610,253.8,0.00015431,2]
[362901131,1748517048667,-304.56,0.00016048,2]
[362901132,1748517048676,-355.32,0.00016666,2]
[362901133,1748517048686,-406.08,0.00017283,2]
[362901134,1748517048696,-5000.0,0.00018321,2]
[362901135,1748517048707,-430.0,0.00019178,2]
[362901136,1748517048716,-430.0,0.00019178,2]
[362901137,1748517048726,-430.0,0.00019452,2]
[362901138,1748517048735,-430.0,0.00019452,2]
[362901139,1748517048745,-430.0,0.00019726,2]
[362901140,1748517048755,-430.0,0.0002,2]
[362901141,1748517048765,-430.0,0.00020273,2]
[362901142,1748517048774,-430.0,0.00020547,2]
[362901143,1748517048783,-430.0,0.00020821,2]
[362901144,1748517048792,-430.0,0.00020821,2]
[362901145,1748517048802,-430.0,0.00021095,2]
[362901146,1748517048811,-430.0,0.00021369,2]
[362901147,1748517048820,-430.0,0.00021369,2]
[362901148,1748517048830,-430.0,0.00021643,2]
[362901149,1748517048839,-430.0,0.00021643,2]
[362901150,1748517048848,-430.0,0.00021917,2]
[362901151,1748517048857,-430.0,0.00021917,2]
[362901152,1748517048866,-18729.01737535,0.00022,7]
[362901153,1748517048936,-430.0,0.00019178,2]
[362901154,1748517048947,-430.0,0.00021095,2]
[362901155,1748517048957,-345.67572661,0.00021369,2]
[362901156,1748517048967,-8602.880726,0.00022,7]
[362901157,1748517048979,-1553.4,0.00022,7]
[362901158,1748517048989,-1308.68,0.00022,2]
[362901159,1748517048998,-4866.40835814,0.00022,7]
[362901160,1748517049086,-430.0,0.00019178,2]
[362901161,1748517049098,-1602.41,0.00019178,2]
[362901162,1748517049109,-1602.41,0.00019452,2]
[362901163,1748517049121,-228.56273291,0.00019726,2]
[362901164,1748517049139,-1373.84726709,0.00019726,2]
[362901165,1748517049150,-1602.41,0.0002,2]
[362901166,1748517049161,-1602.41,0.00020273,2]
[362901167,1748517049172,-1602.41,0.00020547,2]
[362901168,1748517049184,-7794.57009272,0.00022,7]
[362901169,1748517049196,-430.0,0.00022191,2]
[362901170,1748517049206,-430.0,0.00022191,2]
[362901171,1748517049217,-430.0,0.00022191,2]
[362901172,1748517049231,-430.0,0.00022191,2]
[362901173,1748517049247,-430.0,0.00022191,2]
[362901174,1748517049258,-466.12,0.00022191,2]
[362901175,1748517049268,-430.0,0.00022191,2]
[362901176,1748517049280,-439.45305935,0.00022191,2]
[362901177,1748517049291,-430.0,0.00022191,2]
[362901178,1748517049301,-1017.41,0.00022191,2]
[362901179,1748517049311,-430.0,0.00022191,2]
[362901180,1748517049322,-571.75,0.00022191,2]
[362901181,1748517049332,-522.04,0.00022191,2]
[362901182,1748517049342,-933.59,0.00022191,2]
[362901183,1748517049352,-430.0,0.00022191,2]
[362901184,1748517049361,-430.0,0.00022191,2]
[362901185,1748517049372,-667.95,0.00022191,2]
[362901186,1748517049382,-2416.48,0.00022191,2]
[362901187,1748517049393,-430.0,0.00022191,2]
[362901188,1748517049404,-430.0,0.00022191,2]
[362901189,1748517049414,-430.0,0.00022191,2]
[362901190,1748517049424,-430.0,0.00022191,2]
[362901191,1748517049435,-430.0,0.00022191,2]
[362901192,1748517049448,-430.0,0.00022191,2]
[362901193,1748517049458,-679.15,0.00022191,2]
[362901194,1748517049469,-430.0,0.00022191,2]
[362901195,1748517049483,-430.0,0.00022191,2]
[362901196,1748517049493,-433.02,0.00022191,2]
[362901197,1748517049503,-616.46,0.00022191,2]
[362901198,1748517049513,-430.0,0.00022191,2]
[362901199,1748517049527,-1692.37,0.00022191,2]
[362901200,1748517049537,-469.67,0.00022191,2]
[362901201,1748517049547,-430.0,0.00022191,2]
[362901202,1748517049558,-458.93,0.00022191,2]
[362901203,1748517049569,-1754.99,0.00022191,2]
[362901204,1748517049580,-1606.18,0.00022191,2]
[362901205,1748517049590,-430.0,0.00022191,2]
[362901206,1748517049601,-464.47,0.00022191,2]
[362901207,1748517049611,-430.0,0.00022191,2]
[362901208,1748517049621,-430.0,0.00022191,2]
[362901209,1748517049631,-430.0,0.00022191,2]
[362901210,1748517049641,-430.0,0.00022191,2]
[362901211,1748517049651,-430.0,0.00022191,2]
[362901212,1748517049660,-208.73090951,0.00022233,6]
[362901213,1748517049671,-430.0,0.00022465,2]
[362901214,1748517049680,-430.0,0.00022465,2]
[362901215,1748517049691,-430.0,0.00022465,2]
[362901216,1748517049701,-430.0,0.00022465,2]
[362901217,1748517049711,-430.0,0.00022465,2]
[362901218,1748517049721,-430.0,0.00022465,2]
[362901219,1748517049735,-430.0,0.00022465,2]
[362901220,1748517049745,-1017.41,0.00022465,2]
[362901221,1748517049755,-430.0,0.00022465,2]
[362901222,1748517049764,-571.75,0.00022465,2]
[362901223,1748517049774,-933.59,0.00022465,2]
[362901224,1748517049784,-430.0,0.00022465,2]
[362901225,1748517049794,-430.0,0.00022465,2]
[362901226,1748517049804,-667.95,0.00022465,2]
[362901227,1748517049814,-2416.48,0.00022465,2]
[362901228,1748517049823,-306.23041011,0.00022465,2]
[362901229,1748517049832,-430.0,0.00022465,2]
[362901230,1748517049842,-265.98614794,0.00022465,2]
[362901231,1748517049852,-430.0,0.00022465,2]
[362901232,1748517049862,-679.15,0.00022465,2]
[362901233,1748517049872,-430.0,0.00022465,2]
[362901234,1748517049881,-436.32,0.00022465,2]
[362901235,1748517049891,-433.02,0.00022465,2]
[362901236,1748517049900,-616.46,0.00022465,2]
[362901237,1748517049910,-430.0,0.00022465,2]
[362901238,1748517049919,-1692.37,0.00022465,2]
[362901239,1748517050013,-430.0,0.00022465,2]
[362901240,1748517050024,-458.93,0.00022465,2]
[362901241,1748517050033,-1754.99,0.00022465,2]
[362901242,1748517050043,-1606.18,0.00022465,2]
[362901243,1748517050053,-430.0,0.00022465,2]
[362901244,1748517050063,-464.47,0.00022465,2]
[362901245,1748517050073,-430.0,0.00022465,2]
[362901246,1748517050083,-430.0,0.00022465,2]
[362901247,1748517050092,-430.0,0.00022465,2]
[362901248,1748517050102,-430.0,0.00022465,2]
[362901249,1748517050111,-170.7,0.00022465,2]
[362901250,1748517050120,-32220.57,0.000225,2]
[362901251,1748517050130,-600.0,0.000225,30]
[362901252,1748517050139,-208.73090951,0.00022567,7]
[362901253,1748517050149,-430.0,0.00022739,2]
[362901254,1748517050158,-430.0,0.00022739,2]
[362901255,1748517050168,-359.5509278,0.00022739,2]
[362901256,1748517050177,-430.0,0.00022739,2]
[362901257,1748517050188,-430.0,0.00022739,2]
[362901258,1748517050197,-430.0,0.00022739,2]
[362901259,1748517050207,-430.0,0.00022739,2]
[362901260,1748517050217,-1017.41,0.00022739,2]
[362901261,1748517050228,-430.0,0.00022739,2]
[362901262,1748517050237,-571.75,0.00022739,2]
[362901263,1748517050247,-933.59,0.00022739,2]
[362901264,1748517050257,-430.0,0.00022739,2]
[362901265,1748517050266,-430.0,0.00022739,2]
[362901266,1748517050276,-667.95,0.00022739,2]
[362901267,1748517050286,-2416.48,0.00022739,2]
[362901268,1748517050295,-430.0,0.00022739,2]
[362901269,1748517050304,-430.0,0.00022739,2]
[362901270,1748517050314,-679.15,0.00022739,2]
[362901271,1748517050323,-323.52,0.00022739,2]
[362901272,1748517050333,-433.02,0.00022739,2]
[362901273,1748517050343,-616.46,0.00022739,2]
[362901274,1748517050353,-295.5,0.00022739,2]
[362901275,1748517050363,-1692.37,0.00022739,2]
[362901276,1748517050373,-273.1,0.00022739,2]
[362901277,1748517050383,-458.93,0.00022739,2]
[362901278,1748517050393,-1754.99,0.00022739,2]
[362901279,1748517050403,-1606.18,0.00022739,2]
[362901280,1748517050413,-242.6,0.00022739,2]
[362901281,1748517050423,-464.47,0.00022739,2]
[362901282,1748517050433,-492.3,0.00022739,2]
[362901283,1748517050443,-430.0,0.00022739,2]
[362901284,1748517050457,-430.0,0.00022739,2]
[362901285,1748517050467,-430.0,0.00022739,2]
[362901286,1748517050478,-208.73090951,0.000229,8]
[362901287,1748517050487,-430.0,0.00023013,2]
[362901288,1748517050498,-430.0,0.00023013,2]
[362901289,1748517050507,-430.0,0.00023013,2]
[362901290,1748517050516,-430.0,0.00023013,2]
[362901291,1748517050526,-430.0,0.00023013,2]
[362901292,1748517050536,-430.0,0.00023013,2]
[362901293,1748517050545,-1017.41,0.00023013,2]
[362901294,1748517050555,-430.0,0.00023013,2]
[362901295,1748517050564,-571.75,0.00023013,2]
[362901296,1748517050574,-933.59,0.00023013,2]
[362901297,1748517050584,-430.0,0.00023013,2]
[362901298,1748517050595,-430.0,0.00023013,2]
[362901299,1748517050604,-667.95,0.00023013,2]
[362901300,1748517050614,-2416.48,0.00023013,2]
[362901301,1748517050624,-430.0,0.00023013,2]
[362901302,1748517050633,-430.0,0.00023013,2]
[362901303,1748517050643,-679.15,0.00023013,2]
[362901304,1748517050652,-433.02,0.00023013,2]
[362901305,1748517050662,-616.46,0.00023013,2]
[362901306,1748517050671,-1692.37,0.00023013,2]
[362901307,1748517050681,-458.93,0.00023013,2]
[362901308,1748517050691,-1754.99,0.00023013,2]
[362901309,1748517050700,-1606.18,0.00023013,2]
[362901310,1748517050710,-464.47,0.00023013,2]
[362901311,1748517050721,-430.0,0.00023013,2]
[362901312,1748517050731,-430.0,0.00023013,2]
[362901313,1748517050740,-430.0,0.00023013,2]
[362901314,1748517050750,-208.73090951,0.00023233,8]
[362901315,1748517050759,-207.4,0.00023237,2]
[362901316,1748517050770,-430.0,0.00023287,2]
[362901317,1748517050780,-430.0,0.00023287,2]
[362901318,1748517050790,-430.0,0.00023287,2]
[362901319,1748517050800,-430.0,0.00023287,2]
[362901320,1748517050810,-430.0,0.00023287,2]
[362901321,1748517050820,-430.0,0.00023287,2]
[362901322,1748517050830,-1017.41,0.00023287,2]
[362901323,1748517050839,-430.0,0.00023287,2]
[362901324,1748517050849,-571.75,0.00023287,2]
[362901325,1748517050861,-933.59,0.00023287,2]
[362901326,1748517050870,-429.85,0.00023287,2]
[362901327,1748517050880,-430.0,0.00023287,2]
[362901328,1748517050891,-667.95,0.00023287,2]
[362901329,1748517050900,-2416.48,0.00023287,2]
[362901330,1748517050910,-430.0,0.00023287,2]
[362901331,1748517050920,-430.0,0.00023287,2]
[362901332,1748517050930,-679.15,0.00023287,2]
[362901333,1748517050939,-433.02,0.00023287,2]
[362901334,1748517050948,-616.46,0.00023287,2]
[362901335,1748517050958,-1692.37,0.00023287,2]
[362901336,1748517050967,-458.93,0.00023287,2]
[362901337,1748517050979,-1754.99,0.00023287,2]
[362901338,1748517050991,-1606.18,0.00023287,2]
[362901339,1748517051001,-464.47,0.00023287,2]
[362901340,1748517051011,-430.0,0.00023287,2]
[362901341,1748517051022,-430.0,0.00023287,2]
[362901342,1748517051032,-430.0,0.00023287,2]
[362901343,1748517051041,-500.0,0.00023356,2]
[362901344,1748517051051,-430.0,0.00023561,2]
[362901345,1748517051060,-430.0,0.00023561,2]
[362901346,1748517051070,-430.0,0.00023561,2]
[362901347,1748517051079,-430.0,0.00023561,2]
[362901348,1748517051089,-430.0,0.00023561,2]
[362901349,1748517051099,-472.49009233,0.00023561,2]
[362901350,1748517051108,-1017.41,0.00023561,2]
[362901351,1748517051119,-430.0,0.00023561,2]
[362901352,1748517051128,-571.75,0.00023561,2]
[362901353,1748517051137,-933.59,0.00023561,2]
[362901354,1748517051146,-430.0,0.00023561,2]
[362901355,1748517051156,-667.95,0.00023561,2]
[362901356,1748517051166,-2416.48,0.00023561,2]
[362901357,1748517051175,-430.0,0.00023561,2]
[362901358,1748517051185,-430.0,0.00023561,2]
[362901359,1748517051196,-679.15,0.00023561,2]
[362901360,1748517051205,-433.02,0.00023561,2]
[362901361,1748517051215,-616.46,0.00023561,2]
[362901362,1748517051224,-1692.37,0.00023561,2]
[362901363,1748517051235,-458.93,0.00023561,2]
[362901364,1748517051245,-1754.99,0.00023561,2]
[362901365,1748517051255,-1606.18,0.00023561,2]
[362901366,1748517051264,-464.47,0.00023561,2]
[362901367,1748517051274,-340.55,0.00023561,2]
[362901368,1748517051283,-430.0,0.00023561,2]
[362901369,1748517051292,-378.26,0.00023561,2]
[362901370,1748517051302,-208.73090951,0.00023567,9]
[362901371,1748517051312,-533.71,0.000236,2]
[362901372,1748517051322,-430.0,0.00023835,2]
[362901373,1748517051331,-430.0,0.00023835,2]
[362901374,1748517051340,-430.0,0.00023835,2]
[362901375,1748517051350,-430.0,0.00023835,2]
[362901376,1748517051359,-430.0,0.00023835,2]
[362901377,1748517051369,-1017.41,0.00023835,2]
[362901378,1748517051379,-430.0,0.00023835,2]
[362901379,1748517051388,-571.75,0.00023835,2]
[362901380,1748517051398,-933.59,0.00023835,2]
[362901381,1748517051407,-430.0,0.00023835,2]
[362901382,1748517051417,-667.95,0.00023835,2]
[362901383,1748517051427,-2416.48,0.00023835,2]
[362901384,1748517051436,-430.0,0.00023835,2]
[362901385,1748517051446,-430.0,0.00023835,2]
[362901386,1748517051459,-679.15,0.00023835,2]
[362901387,1748517051468,-433.02,0.00023835,2]
[362901388,1748517051477,-616.46,0.00023835,2]
[362901389,1748517051487,-1692.37,0.00023835,2]
[362901390,1748517051496,-458.93,0.00023835,2]
[362901391,1748517051505,-1754.99,0.00023835,2]
[362901392,1748517051515,-1606.18,0.00023835,2]
[362901393,1748517051525,-464.47,0.00023835,2]
[362901394,1748517051535,-430.0,0.00023835,2]
[362901395,1748517051544,-812.99,0.000239,7]
[362901396,1748517051553,-55552.01,0.000239,7]
[362901397,1748517051562,-1553.4,0.000239,7]
[362901398,1748517051572,-1308.68,0.000239,2]
[362901399,1748517051582,-208.73090951,0.000239,10]
[362901400,1748517051591,-10043.91431501,0.00024,5]
[362901401,1748517051600,-160.0,0.00024,7]
[362901402,1748517051610,-444.39,0.00024109,2]
[362901403,1748517051619,-259.92,0.00024109,2]
[362901404,1748517051705,-430.0,0.00024109,2]
[362901405,1748517051715,-430.0,0.00024109,2]
[362901406,1748517051724,-430.0,0.00024109,2]
[362901407,1748517051735,-210.08,0.00024109,2]
[362901408,1748517051744,-1017.41,0.00024109,2]
[362901409,1748517051754,-430.0,0.00024109,2]
[362901410,1748517051763,-571.75,0.00024109,2]
[362901411,1748517051774,-933.59,0.00024109,2]
[362901412,1748517051783,-430.0,0.00024109,2]
[362901413,1748517051793,-667.95,0.00024109,2]
[362901414,1748517051802,-2416.48,0.00024109,2]
[362901415,1748517051812,-430.0,0.00024109,2]
[362901416,1748517051822,-430.0,0.00024109,2]
[362901417,1748517051831,-430.0,0.00024109,2]
[362901418,1748517051841,-430.0,0.00024109,2]
[362901419,1748517051851,-430.0,0.00024109,2]
[362901420,1748517051860,-349.44,0.00024109,2]
[362901421,1748517051870,-430.0,0.00024109,2]
[362901422,1748517051879,-430.0,0.00024109,2]
[362901423,1748517051889,-554.04474916,0.00024109,2]
[362901424,1748517051899,-430.0,0.00024109,2]
[362901425,1748517051908,-679.15,0.00024109,2]
[362901426,1748517051918,-433.02,0.00024109,2]
[362901427,1748517051928,-616.46,0.00024109,2]
[362901428,1748517051937,-1692.37,0.00024109,2]
[362901429,1748517051947,-458.93,0.00024109,2]
[362901430,1748517051957,-1754.99,0.00024109,2]
[362901431,1748517051967,-1606.18,0.00024109,2]
[362901432,1748517051978,-464.47,0.00024109,2]
[362901433,1748517051987,-430.0,0.00024109,2]
[362901434,1748517051997,-208.73090951,0.00024233,10]
[362901435,1748517052007,-32220.57,0.000243,2]
[362901436,1748517052016,-430.0,0.00024383,2]
[362901437,1748517052026,-430.0,0.00024383,2]
[362901438,1748517052036,-461.24,0.00024383,2]
[362901439,1748517052046,-1017.41,0.00024383,2]
[362901440,1748517052055,-571.75,0.00024383,2]
[362901441,1748517052065,-933.59,0.00024383,2]
[362901442,1748517052075,-430.0,0.00024383,2]
[362901443,1748517052085,-667.95,0.00024383,2]
[362901444,1748517052094,-2416.48,0.00024383,2]
[362901445,1748517052104,-430.0,0.00024383,2]
[362901446,1748517052114,-679.15,0.00024383,2]
[362901447,1748517052124,-433.02,0.00024383,2]
[362901448,1748517052134,-616.46,0.00024383,2]
[362901449,1748517052143,-1692.37,0.00024383,2]
[362901450,1748517052152,-458.93,0.00024383,2]
[362901451,1748517052162,-1754.99,0.00024383,2]
[362901452,1748517052172,-1606.18,0.00024383,2]
[362901453,1748517052181,-464.47,0.00024383,2]
[362901454,1748517052192,-360.15,0.00024383,2]
[362901455,1748517052201,-151.0,0.000244,8]
[362901456,1748517052211,-1005.810005,0.00024426,15]
[362901457,1748517052220,-379.57682,0.000245,3]
[362901458,1748517052231,-208.73090951,0.00024567,11]
[362901459,1748517052241,-215.0738,0.00024606,2]
[362901460,1748517052250,-208.08909398,0.00024657,2]
[362901461,1748517052260,-430.0,0.00024657,2]
[362901462,1748517052270,-430.0,0.00024657,2]
[362901463,1748517052279,-430.0,0.00024657,2]
[362901464,1748517052289,-430.0,0.00024657,2]
[362901465,1748517052299,-430.0,0.00024657,2]
[362901466,1748517052309,-430.0,0.00024657,2]
[362901467,1748517052319,-430.0,0.00024657,2]
[362901468,1748517052329,-433.55599305,0.00024657,2]
[362901469,1748517052338,-267.5,0.00024657,2]
[362901470,1748517052348,-430.0,0.00024657,2]
[362901471,1748517052360,-420.16,0.00024657,3]
[362901472,1748517052370,-1017.41,0.00024657,2]
[362901473,1748517052380,-571.75,0.00024657,2]
[362901474,1748517052389,-933.59,0.00024657,2]
[362901475,1748517052400,-430.0,0.00024657,2]
[362901476,1748517052409,-667.95,0.00024657,2]
[362901477,1748517052420,-2416.48,0.00024657,2]
[362901478,1748517052428,-430.0,0.00024657,2]
[362901479,1748517052437,-679.15,0.00024657,2]
[362901480,1748517052449,-433.02,0.00024657,2]
[362901481,1748517052459,-616.46,0.00024657,2]
[362901482,1748517052469,-1692.37,0.00024657,2]
[362901483,1748517052478,-458.93,0.00024657,2]
[362901484,1748517052488,-1754.99,0.00024657,2]
[362901485,1748517052499,-1606.18,0.00024657,2]
[362901486,1748517052509,-464.47,0.00024657,2]
[362901487,1748517052518,-250.4286812,0.00024658,2]
[362901488,1748517052528,-200.0,0.00024658,15]
[362901489,1748517052538,-984.045343,0.00024658,3]
[362901490,1748517052547,-215.63113713,0.00024658,2]
[362901491,1748517052557,-600.0,0.00024658,120]
[362901492,1748517052566,-200.0,0.00024694,120]
[362901493,1748517052576,-580.37411691,0.00024738,2]
[362901494,1748517052585,-2000.0,0.000248,2]
[362901495,1748517052594,-2000.0,0.000248,2]
[362901496,1748517052604,-152.53,0.000249,31]
[362901497,1748517052613,-152.53,0.000249,31]
[362901498,1748517052623,-152.53,0.000249,31]
[362901499,1748517052633,-152.53,0.000249,31]
[362901500,1748517052643,-152.53,0.000249,31]
[362901501,1748517052652,-152.53,0.000249,31]